bitfinex/quotes_SOLUSD_20241226
["timestamp","ask_amount","ask_price","bid_price","bid_amount"]
[1735235490176,1.3263,188.49,188.37,12.31444315]
[1735235490379,1.3263,188.49,188.36,12.31444315]
[1735235490549,20.0,188.45,188.36,12.31444315]
[1735235490875,20.0,188.45,188.34,14.69282605]
[1735235491079,20.0,188.45,188.35,12.31444315]
[1735235491786,1.3266,188.44,188.34,14.69282605]
[1735235491959,1.3266,188.44,188.33,12.31444315]
[1735235492649,6.0981,188.43,188.32,0.12549]
[1735235492861,6.0981,188.43,188.32,12.43993315]
[1735235492862,20.0,188.4,188.32,12.43993315]
[1735235493171,6.0981,188.43,188.34,12.31444315]
[1735235493371,7.4245,188.48,188.37,12.43993315]
[1735235493683,7.4245,188.48,188.41,0.12549]
[1735235493863,7.4245,188.48,188.4,12.31444315]
[1735235494348,7.4245,188.48,188.39,12.43993315]
[1735235494555,7.4245,188.48,188.39,36.21681715]
[1735235494779,7.4245,188.48,188.4,12.31444315]
[1735235495481,7.4245,188.48,188.41,12.31444315]
[1735235495648,7.4245,188.48,188.4,12.31444315]
[1735235496049,7.4245,188.48,188.39,24.69825606]
[1735235496461,7.4245,188.48,188.39,0.12549]
[1735235498155,20.0,188.45,188.38,12.31444315]
[1735235498351,20.0,188.45,188.37,12.31444315]
[1735235498557,20.0,188.45,188.38,12.31444315]
[1735235498753,6.0981,188.48,188.39,37.01281874]
[1735235498975,6.0981,188.48,188.4,12.31444315]
[1735235499482,6.0981,188.48,188.39,37.01281874]
[1735235499859,7.4245,188.48,188.39,37.01281874]
[1735235500064,7.4245,188.48,188.37,12.31444315]
[1735235500270,7.4245,188.48,188.36,12.31444315]
[1735235500271,20.0,188.45,188.36,12.31444315]
[1735235500581,20.0,188.45,188.36,23.902374]
[1735235501087,20.0,188.45,188.36,36.21681715]
[1735235501379,20.0,188.45,188.36,23.902374]
[1735235501685,21.3266,188.45,188.36,23.902374]
[1735235502081,21.3266,188.45,188.36,0.12549]
[1735235503181,21.3266,188.45,188.33,12.31444315]
[1735235503182,23.9798,188.45,188.33,12.31444315]
[1735235503356,21.3266,188.45,188.36,0.12549]
[1735235503556,21.3266,188.45,188.36,12.43993315]
[1735235504094,21.3266,188.45,188.36,0.12549]
[1735235504267,21.3266,188.45,188.34,12.31444315]
[1735235504467,23.9798,188.45,188.32,13.94044315]
[1735235504977,23.9798,188.45,188.33,12.31444315]
[1735235506364,23.9798,188.45,188.33,12.43993315]
[1735235507866,23.9798,188.45,188.34,12.31444315]
[1735235508564,23.9798,188.45,188.33,36.21681715]
[1735235509588,21.3266,188.45,188.36,0.12549]
[1735235510993,1.3266,188.45,188.37,12.43993315]
[1735235511193,7.4245,188.48,188.39,12.31444315]
[1735235511403,6.4639,188.56,188.42,12.31444315]
[1735235511709,10.4413,188.56,188.42,12.31444315]
[1735235511874,10.4413,188.56,188.42,0.12549]
[1735235512201,23.902374,188.55,188.39,12.31444315]
[1735235512503,13.0929,188.56,188.41,12.43993315]
[1735235512894,13.0929,188.56,188.41,0.12549]
[1735235513205,20.0,188.53,188.41,23.902374]
[1735235514186,1.3261,188.52,188.41,23.902374]
[1735235516004,1.3261,188.52,188.41,0.12549]
[1735235516188,3.9783,188.52,188.37,12.31444315]
[1735235516511,3.9783,188.52,188.38,12.31444315]
[1735235516814,3.9783,188.52,188.39,12.31444315]
[1735235517706,3.9783,188.52,188.37,23.902374]
[1735235518002,3.9783,188.52,188.39,12.31444315]
[1735235518304,3.9783,188.52,188.37,23.902374]
[1735235518505,20.0,188.48,188.37,12.43993315]
[1735235518677,20.0,188.48,188.36,12.31444315]
[1735235519213,20.0,188.48,188.37,0.12549]
[1735235519803,20.0,188.48,188.37,12.31444315]
[1735235519982,3.9793,188.47,188.38,12.31444315]
[1735235520183,1.3264,188.47,188.39,12.43993315]
[1735235520386,1.3264,188.47,188.42,0.12549]
[1735235521808,6.6596,188.51,188.42,36.21681715]
[1735235522109,1.3262,188.5,188.45,0.12549]
[1735235522291,1.3262,188.5,188.45,12.43993315]
[1735235522674,1.326,188.53,188.47,12.43993315]
[1735235523099,1.326,188.53,188.47,0.12549]
[1735235524106,20.0,188.52,188.47,0.12549]
[1735235524318,1.3261,188.51,188.43,12.31444315]
[1735235525497,1.3261,188.51,188.45,0.12549]
[1735235527393,3.9784,188.51,188.41,13.86674315]
[1735235528117,3.9784,188.51,188.42,12.43993315]
[1735235530123,3.9784,188.51,188.43,12.31444315]
[1735235530584,1.3261,188.51,188.43,12.31444315]
[1735235530787,1.3261,188.51,188.44,0.12549]
[1735235531089,1.3261,188.51,188.45,0.12549]
[1735235531287,1.3259,188.54,188.47,0.12549]
[1735235531594,6.6297,188.54,188.41,13.86674315]
[1735235531800,6.6297,188.54,188.39,12.31444315]
[1735235532005,23.902374,188.53,188.37,13.83464315]
[1735235532207,23.902374,188.51,188.35,12.31444315]
[1735235532510,20.0,188.48,188.35,12.31444315]
[1735235532897,3.9793,188.47,188.34,12.31444315]
[1735235533096,3.9793,188.47,188.33,12.31444315]
[1735235533317,20.0,188.43,188.32,13.83464315]
[1735235533617,20.0,188.43,188.33,0.12549]
[1735235534021,20.0,188.43,188.32,13.83464315]
[1735235534323,20.0,188.43,188.33,0.12549]
[1735235534523,1.3268,188.42,188.33,12.43993315]
[1735235534727,1.3268,188.42,188.35,12.31444315]
[1735235535031,1.3266,188.45,188.38,0.12549]
[1735235535208,1.3266,188.45,188.4,0.12549]
[1735235535413,7.936,188.51,188.4,12.31444315]
[1735235535926,10.5883,188.51,188.4,12.31444315]
[1735235536109,10.5883,188.51,188.39,0.12549]
[1735235536614,20.0,188.48,188.36,12.31444315]
[1735235536822,20.0,188.48,188.37,13.11051041]
[1735235537035,20.0,188.48,188.38,0.12549]
[1735235537700,1.3264,188.47,188.38,0.12549]
[1735235540638,1.3264,188.47,188.41,12.31444315]
[1735235541004,1.3264,188.47,188.42,0.12549]
[1735235542143,1.3264,188.47,188.41,23.776884]
[1735235542144,1.3264,188.47,188.4,12.31444315]
[1735235542304,1.3264,188.47,188.38,12.31444315]
[1735235542503,1.3264,188.47,188.34,0.79581977]
[1735235542504,3.9787,188.5,188.37,12.31444315]
[1735235543142,20.0,188.48,188.38,0.12549]
[1735235543639,1.3264,188.47,188.38,12.43993315]
[1735235545243,3.9793,188.47,188.36,12.31444315]
[1735235545620,3.9793,188.47,188.37,12.31444315]
[1735235546313,3.9793,188.47,188.38,12.43993315]
[1735235547117,3.9793,188.47,188.39,12.31444315]
[1735235547643,1.3264,188.47,188.38,12.43993315]
[1735235547822,1.3264,188.47,188.39,0.79592582]
[1735235548016,1.3264,188.47,188.38,12.43993315]
[1735235548219,1.3264,188.47,188.37,12.31444315]
[1735235548837,1.3264,188.47,188.38,13.1104701]
[1735235549040,1.3264,188.47,188.37,12.31444315]
[1735235549246,1.3264,188.47,188.38,0.12549]
[1735235549642,1.3264,188.47,188.38,12.31444315]
[1735235550220,1.3264,188.47,188.4,12.31444315]
[1735235550545,1.3264,188.47,188.42,12.43993315]
[1735235551629,1.3262,188.5,188.42,0.12549]
[1735235551944,20.0,188.48,188.42,0.12549]
[1735235552331,20.0,188.48,188.38,12.31444315]
[1735235552840,20.0,188.48,188.39,0.12549]
[1735235553325,20.0,188.47,188.36,12.31444315]
[1735235553714,1.3265,188.46,188.37,12.43993315]
[1735235554144,1.3265,188.46,188.37,13.23596559]
[1735235554347,1.3265,188.46,188.39,12.43993315]
[1735235554532,1.3265,188.46,188.4,12.31444315]
[1735235555133,1.3265,188.46,188.39,12.43993315]
[1735235555653,1.3265,188.46,188.32,22.31608201]
[1735235555849,3.9795,188.46,188.35,12.31444315]
[1735235556035,6.4364,188.45,188.33,12.31444315]
[1735235556220,20.0,188.42,188.32,13.83464315]
[1735235556536,20.0,188.42,188.32,1.5202]
[1735235557841,1.3268,188.41,188.31,12.31444315]
[1735235558332,3.9805,188.41,188.3,12.31444315]
[1735235559833,3.9805,188.41,188.31,12.31444315]
[1735235560038,3.9805,188.41,188.32,12.31444315]
[1735235560232,3.9805,188.41,188.31,12.31444315]
[1735235560438,3.9805,188.41,188.3,12.31444315]
[1735235561037,23.9805,188.41,188.3,12.31444315]
[1735235561245,23.9805,188.41,188.29,12.31444315]
[1735235561950,23.9805,188.41,188.3,12.31444315]
[1735235562464,23.9805,188.41,188.31,12.31444315]
[1735235562657,23.9805,188.41,188.31,0.12549]
[1735235563522,2.6537,188.41,188.31,0.12549]
[1735235563723,2.6537,188.41,188.33,0.12549]
[1735235563929,1.3266,188.44,188.35,12.31444315]
[1735235564946,1.3266,188.44,188.36,36.21681715]
[1735235565137,1.3266,188.44,188.36,37.01284815]
[1735235565968,1.3266,188.44,188.38,12.31444315]
[1735235566271,1.3266,188.44,188.37,0.12549]
[1735235569034,1.3266,188.44,188.39,0.12549]
[1735235569240,1.3264,188.47,188.4,12.31444315]
[1735235569443,1.3264,188.47,188.39,12.43993315]
[1735235570256,1.3264,188.47,188.41,0.12549]
[1735235570467,21.3264,188.47,188.41,0.12549]
[1735235571879,21.3264,188.47,188.41,12.43993315]
[1735235572082,1.3264,188.47,188.42,12.31444315]
[1735235572681,1.3264,188.47,188.43,0.12549]
[1735235573758,21.3264,188.47,188.43,0.12549]
[1735235574153,21.3264,188.47,188.43,23.902374]
[1735235574349,20.0,188.47,188.43,36.21681715]
[1735235574662,1.3262,188.5,188.43,36.21681715]
[1735235574855,1.3262,188.5,188.44,0.79574005]
[1735235575272,1.3262,188.5,188.45,23.902374]
[1735235575577,20.0,188.51,188.47,0.12549]
[1735235575766,1.326,188.53,188.47,0.12549]
[1735235576776,2.09534948,188.59,188.47,36.21681715]
[1735235577086,20.0,188.55,188.47,23.902374]
[1735235578080,1.3259,188.54,188.47,23.902374]
[1735235578381,1.3259,188.54,188.48,0.79558625]
[1735235578569,1.3259,188.54,188.49,0.12549]
[1735235578951,1.3259,188.54,188.49,23.902374]
[1735235579168,1.3259,188.54,188.49,36.21681715]
[1735235579683,1.3257,188.57,188.53,23.902374]
[1735235579885,1.3257,188.57,188.51,12.31444315]
[1735235580255,1.3257,188.57,188.5,12.31444315]
[1735235580486,1.3257,188.57,188.52,0.12549]
[1735235580992,1.3257,188.57,188.51,0.79543976]
[1735235581199,3.9772,188.57,188.47,12.31444315]
[1735235581496,3.9772,188.57,188.46,12.31444315]
[1735235581656,2.6515,188.57,188.48,23.902374]
[1735235582290,2.6515,188.57,188.48,36.21681715]
[1735235582470,2.6515,188.57,188.48,23.902374]
[1735235582989,2.6515,188.57,188.48,36.21681715]
[1735235583298,2.6515,188.57,188.48,37.01234501]
[1735235583485,1.3256,188.58,188.5,12.43993315]
[1735235583661,1.3256,188.58,188.52,23.902374]
[1735235583861,1.3256,188.58,188.52,24.69772461]
[1735235584491,1.3256,188.58,188.53,12.31444315]
[1735235584791,1.3256,188.58,188.54,0.12549]
[1735235585385,2.6509,188.62,188.54,0.12549]
[1735235585386,20.0,188.6,188.54,0.12549]
[1735235585573,20.0,188.6,188.53,0.12549]
[1735235586483,21.3256,188.6,188.53,0.12549]
[1735235586791,21.3256,188.6,188.53,0.92081697]
[1735235588062,23.9767,188.6,188.45,0.7953284]
[1735235588263,23.9767,188.6,188.49,12.31444315]
[1735235588563,23.9767,188.6,188.51,23.902374]
[1735235590017,23.9767,188.6,188.53,0.12549]
[1735235591999,23.9767,188.6,188.5,23.902374]
[1735235593079,23.9767,188.6,188.52,0.12549]
[1735235593489,21.3256,188.6,188.52,23.902374]
[1735235593685,21.3256,188.6,188.54,23.902374]
[1735235593902,1.3256,188.6,188.56,0.12549]
[1735235595415,21.3256,188.6,188.56,0.12549]
[1735235597012,21.3256,188.6,188.52,1.5204]
[1735235597194,21.3256,188.6,188.47,1.5204]
[1735235597398,21.3256,188.6,188.47,2.31587516]
[1735235598286,20.0,188.56,188.42,1.5204]
[1735235598482,20.0,188.56,188.45,12.31444315]
[1735235598786,20.0,188.56,188.46,0.79567009]
[1735235599191,20.0,188.56,188.46,13.11011324]
[1735235599421,20.0,188.56,188.47,0.12549]
[1735235600017,20.0,188.56,188.46,23.902374]
[1735235600589,1.3259,188.55,188.48,23.902374]
[1735235601219,1.3259,188.55,188.48,0.12549]
[1735235604413,23.9777,188.55,188.42,13.83484315]
[1735235604587,23.9777,188.55,188.42,1.5204]
[1735235605003,23.9777,188.55,188.43,23.902374]
[1735235608020,23.9777,188.55,188.43,36.21681715]
[1735235608489,23.9777,188.55,188.42,2.31619861]
[1735235608490,1.3259,188.55,188.47,0.12549]
[1735235608690,1.3259,188.55,188.47,0.92107932]
[1735235608915,1.3259,188.55,188.48,23.776884]
[1735235609121,1.3259,188.55,188.48,0.12549]
[1735235609816,1.3259,188.55,188.48,23.902374]
[1735235610112,2.6513,188.58,188.48,23.902374]
[1735235610328,3.9769,188.58,188.48,23.902374]
[1735235611125,3.9769,188.58,188.5,36.21681715]
[1735235611326,3.9769,188.58,188.5,23.902374]
[1735235611492,3.9769,188.58,188.5,0.12549]
[1735235612088,3.9769,188.58,188.48,23.902374]
[1735235612691,20.0,188.56,188.47,36.21681715]
[1735235612892,20.0,188.56,188.47,23.902374]
[1735235613092,20.0,188.55,188.44,12.31444315]
[1735235613501,20.0,188.55,188.45,0.12549]
[1735235613696,20.0,188.55,188.42,13.83484315]
[1735235614210,20.0,188.56,188.43,23.902374]
[1735235614408,22.6519,188.54,188.43,23.902374]
[1735235614617,22.6519,188.54,188.43,36.21681715]
[1735235615420,23.9778,188.54,188.43,36.21681715]
[1735235616022,3.9778,188.54,188.45,23.902374]
[1735235616322,3.9778,188.54,188.42,1.5204]
[1735235616512,23.9778,188.54,188.42,13.83484315]
[1735235616721,23.9778,188.54,188.43,36.21681715]
[1735235617030,1.3259,188.54,188.47,23.902374]
[1735235617219,1.3259,188.54,188.47,36.21681715]
[1735235617914,1.3259,188.54,188.49,23.902374]
[1735235618222,1.3259,188.54,188.42,1.5204]
[1735235618223,1.3257,188.57,188.51,12.43993315]
[1735235618429,1.3255,188.6,188.55,0.12549]
[1735235618810,1.3255,188.6,188.56,0.79528622]
[1735235619009,6.6523,188.64,188.56,0.79528622]
[1735235619319,1.3253,188.63,188.55,0.9207445]
[1735235620054,1.3253,188.63,188.55,0.12549]
[1735235620325,21.3255,188.61,188.55,0.12549]
[1735235622626,8.05894262,188.7,188.61,0.12549]
[1735235622801,8.05894262,188.7,188.66,12.31444315]
[1735235623002,8.05894262,188.7,188.67,0.12549]
[1735235623295,8.05894262,188.7,188.67,23.902374]
[1735235623833,1.3245,188.74,188.67,23.902374]
[1735235624003,2.6487,188.77,188.67,23.902374]
[1735235624205,20.0,188.76,188.67,13.23473245]
[1735235624539,1.3242,188.78,188.69,23.902374]
[1735235624707,1.3242,188.78,188.69,24.69701327]
[1735235625041,1.3242,188.78,188.69,23.902374]
[1735235625217,1.3242,188.78,188.68,0.12549]
[1735235625404,1.3242,188.78,188.68,23.902374]
[1735235625911,20.0,188.76,188.7,0.12549]
[1735235626139,1.3242,188.78,188.7,0.12549]
[1735235626701,1.3242,188.78,188.72,0.12549]
[1735235627432,1.3238,188.84,188.73,0.12549]
[1735235627603,1.3238,188.84,188.75,0.12549]
[1735235627922,1.3238,188.84,188.75,12.43993315]
[1735235628327,1.3238,188.84,188.77,0.12549]
[1735235629014,3.9715,188.84,188.7,12.31444315]
[1735235629205,20.0,188.82,188.71,23.902374]
[1735235629627,1.324,188.81,188.71,23.902374]
[1735235630140,1.324,188.81,188.71,13.23452979]
[1735235632044,1.324,188.81,188.75,23.902374]
[1735235632842,20.0,188.82,188.75,36.21681715]
[1735235633214,21.324,188.82,188.75,23.902374]
[1735235634033,21.324,188.82,188.73,12.31444315]
[1735235634234,21.324,188.82,188.71,13.10880934]
[1735235634850,21.324,188.82,188.72,36.21681715]
[1735235635446,23.972,188.82,188.72,36.21681715]
[1735235637341,23.972,188.82,188.72,0.12549]
[1735235637946,23.972,188.82,188.72,12.43993315]
[1735235638133,23.972,188.82,188.73,12.31444315]
[1735235638337,23.972,188.82,188.72,12.43993315]
[1735235642453,21.324,188.82,188.74,23.902374]
[1735235642635,1.324,188.82,188.76,23.902374]
[1735235642841,1.3238,188.85,188.8,0.12549]
[1735235643045,1.3238,188.85,188.81,0.12549]
[1735235643237,1.3236,188.88,188.81,36.21681715]
[1735235643559,1.3236,188.88,188.83,0.12549]
[1735235643726,6.2288,188.94,188.85,0.12549]
[1735235644451,6.2288,188.94,188.84,0.12549]
[1735235644850,6.2288,188.94,188.86,0.12549]
[1735235645038,1.3232,188.93,188.86,0.12549]
[1735235646030,1.3232,188.93,188.88,0.12549]
[1735235646655,1.3232,188.93,188.88,12.43993315]
[1735235647156,1.3229,188.97,188.88,12.43993315]
[1735235648131,3.9688,188.97,188.87,0.12549]
[1735235648333,20.0,188.95,188.87,0.12549]
[1735235649234,1.3231,188.94,188.87,23.902374]
[1735235649627,1.3231,188.94,188.87,0.12549]
[1735235650357,1.3231,188.94,188.87,23.902374]
[1735235650654,1.3231,188.94,188.87,36.21681715]
[1735235650953,1.3231,188.94,188.87,23.902374]
[1735235651625,7.5517,188.98,188.89,12.43993315]
[1735235652030,1.3229,188.98,188.91,23.902374]
[1735235652239,1.3229,188.98,188.93,23.902374]
[1735235652764,1.3226,189.01,188.93,23.902374]
[1735235653054,1.3226,189.01,188.95,12.43993315]
[1735235653557,1.3226,189.01,188.93,23.776884]
[1735235653558,1.3226,189.01,188.94,0.12549]
[1735235653860,1.3226,189.01,188.94,23.902374]
[1735235654264,20.0,189.02,188.94,36.21681715]
[1735235654428,20.0,189.02,188.94,0.12549]
[1735235654633,20.0,189.02,188.94,23.902374]
[1735235654834,20.0,189.02,188.94,12.43993315]
[1735235655442,1.3226,189.01,188.94,12.43993315]
[1735235656345,1.3226,189.01,188.95,0.12549]
[1735235658466,1.3226,189.01,188.92,12.31444315]
[1735235658637,1.3226,189.01,188.94,23.902374]
[1735235658965,1.3226,189.01,188.94,12.43993315]
[1735235659275,1.3226,189.01,188.93,0.12549]
[1735235659438,1.3226,189.01,188.95,0.12549]
[1735235661239,1.3226,189.01,188.96,23.902374]
[1735235661438,1.3226,189.01,188.96,36.21681715]
[1735235661651,20.0,189.02,188.98,0.12549]
[1735235661863,20.0,189.02,188.98,23.902374]
[1735235662254,1.3224,189.04,189.0,23.902374]
[1735235663273,2.6439,189.11,188.99,23.902374]
[1735235663445,2.6439,189.11,188.99,36.21681715]
[1735235663646,22.6439,189.11,188.99,36.21681715]
[1735235663845,2.6439,189.11,189.01,0.12549]
[1735235664166,2.6439,189.11,189.03,0.12549]
[1735235665048,3.9658,189.11,189.03,0.12549]
[1735235665246,1.3219,189.11,189.03,12.43993315]
[1735235665558,1.3219,189.11,189.04,12.43993315]
[1735235665762,1.3219,189.11,189.06,0.12549]
[1735235666780,1.3219,189.11,189.05,23.902374]
[1735235667066,21.3219,189.11,189.05,23.902374]
[1735235667686,21.3219,189.11,189.05,12.43993315]
[1735235667854,7.8574,189.14,189.07,23.902374]
[1735235668055,1.3217,189.14,189.07,23.902374]
[1735235668252,1.3217,189.14,189.07,12.43993315]
[1735235668572,1.3217,189.14,189.09,23.902374]
[1735235669078,3.9646,189.17,189.07,12.31444315]
[1735235669253,3.9646,189.17,189.04,12.31444315]
[1735235670249,1.3217,189.14,189.05,23.902374]
[1735235671179,1.3217,189.14,189.07,0.12549]
[1735235672069,3.9652,189.14,189.04,0.79313807]
[1735235672248,23.9652,189.14,189.05,23.902374]
[1735235672449,23.9652,189.14,189.01,12.31444315]
[1735235672682,23.9652,189.14,189.0,12.31444315]
[1735235672865,23.9652,189.14,189.02,23.902374]
[1735235673055,23.9652,189.14,189.02,36.21681715]
[1735235674475,23.9652,189.14,189.04,23.902374]
[1735235674685,1.3217,189.14,189.06,12.43993315]
[1735235674873,1.3217,189.14,189.08,23.902374]
[1735235675356,1.3217,189.14,189.06,12.31444315]
[1735235675553,1.3217,189.14,189.07,1.5225]
[1735235675878,1.3217,189.14,189.08,23.902374]
[1735235676275,20.0,189.15,189.08,23.902374]
[1735235678288,1.3217,189.14,189.08,0.12549]
[1735235679268,1.3217,189.14,188.9,12.31444315]
[1735235679269,1.3217,189.14,189.05,23.902374]
[1735235679464,1.3217,189.14,189.05,0.12549]
[1735235679982,1.3217,189.14,189.04,23.902374]
[1735235680387,1.3217,189.14,189.04,36.21681715]
[1735235680687,1.3219,189.12,189.04,36.21681715]
[1735235680851,1.3219,189.12,189.04,37.00998235]
[1735235681063,1.3219,189.12,189.06,0.12549]
[1735235682188,1.3219,189.12,189.05,0.12549]
[1735235683590,1.3219,189.12,189.07,0.12549]
[1735235683800,1.3219,189.12,189.07,23.902374]
[1735235684287,1.3219,189.12,189.06,0.12549]
[1735235684487,1.3219,189.12,189.06,23.902374]
[1735235685780,1.3219,189.12,189.05,0.12549]
[1735235685982,1.3219,189.12,189.03,1.6477]
[1735235686186,1.3219,189.12,189.04,23.902374]
[1735235686389,1.3219,189.12,189.04,36.21681715]
[1735235687287,1.3219,189.12,189.06,23.902374]
[1735235688573,1.3219,189.12,189.05,23.902374]
[1735235689794,1.3219,189.12,189.03,13.96214315]
[1735235690168,1.3219,189.12,189.05,23.902374]
[1735235692494,1.3219,189.12,189.05,36.21681715]
[1735235694193,1.3219,189.12,189.05,0.12549]
[1735235705576,20.0,189.08,188.99,1.6195]
[1735235706274,20.0,189.08,189.0,31.72734672]
[1735235706486,1.3219,189.12,189.04,31.72734672]
[1735235709498,1.3219,189.12,188.99,1.6195]
[1735235709499,1.3219,189.12,189.0,20.0]
[1735235709699,3.9657,189.12,189.0,20.0]
[1735235709904,3.9657,189.12,188.99,1.6195]
[1735235710224,3.9657,189.12,188.99,9.44447272]
[1735235710410,3.9657,189.12,189.02,7.95046272]
[1735235710612,3.9657,189.12,189.04,23.902374]
[1735235710815,1.3219,189.12,189.04,31.72734672]
[1735235711118,3.9657,189.12,189.02,7.82497272]
[1735235711427,3.9657,189.12,189.03,0.12549]
[1735235712011,3.9657,189.12,189.01,7.82497272]
[1735235712204,3.9657,189.12,189.02,0.12549]
[1735235712407,3.9657,189.12,189.04,0.12549]
[1735235713028,1.3219,189.12,189.06,0.12549]
[1735235713398,1.3219,189.12,189.08,0.12549]
[1735235714228,1.3219,189.12,189.07,0.12549]
[1735235714395,1.3217,189.15,189.07,0.12549]
[1735235715223,1.3217,189.15,189.06,23.902374]
[1735235715717,1.3219,189.12,189.06,23.902374]
[1735235716607,1.3219,189.12,189.05,23.902374]
[1735235717212,1.3219,189.12,189.05,31.72734672]
[1735235717656,1.3219,189.12,189.07,23.902374]
[1735235719129,1.3219,189.12,189.05,23.902374]
[1735235719508,1.3219,189.12,189.05,31.72734672]
[1735235720723,1.3219,189.12,189.07,23.902374]
[1735235721222,1.3219,189.12,189.07,31.72734672]
[1735235721625,20.0,189.13,189.07,31.72734672]
[1735235721927,1.3217,189.15,189.09,23.902374]
[1735235724427,1.3217,189.15,189.09,31.72734672]
[1735235725106,1.3217,189.15,189.09,23.902374]
[1735235726218,1.3217,189.15,189.09,31.72734672]
[1735235729630,19.8217,189.18,189.09,23.902374]
[1735235730318,19.8217,189.18,189.07,31.72734672]
[1735235730626,1.3217,189.15,189.07,31.72734672]
[1735235733732,19.6434,189.18,189.07,31.72734672]
[1735235734233,19.6434,189.18,189.07,23.902374]
[1735235734436,19.6434,189.18,189.07,31.72734672]
[1735235735736,1.3217,189.15,189.07,31.72734672]
[1735235736519,1.3217,189.15,189.07,23.902374]
[1735235737220,1.3217,189.15,189.06,1.6304]
[1735235737638,1.3217,189.15,189.07,0.12549]
[1735235738832,3.9651,189.15,189.07,0.12549]
[1735235739545,3.9651,189.15,189.07,23.902374]
[1735235740242,2.6434,189.15,189.07,23.902374]
[1735235741817,2.6434,189.15,189.07,0.12549]
[1735235742141,20.0,189.13,189.01,1.6216]
[1735235742439,26.3445,189.13,189.01,1.6216]
[1735235742944,26.3445,189.13,188.98,23.902374]
[1735235743341,23.9661,189.1,188.98,23.902374]
[1735235743913,20.0,189.09,188.98,23.902374]
[1735235744641,1.3221,189.08,188.98,23.902374]
[1735235745040,1.3221,189.08,189.0,31.72734672]
[1735235745938,1.3221,189.08,188.99,0.12549]
[1735235746542,1.3221,189.08,189.01,0.12549]
[1735235747414,20.0,189.07,189.0,0.12549]
[1735235748241,1.3221,189.08,188.99,0.79345991]
[1735235748546,1.3221,189.08,188.99,23.902374]
[1735235749351,1.3221,189.08,188.99,24.69576449]
[1735235751248,1.3221,189.08,188.99,23.902374]
[1735235751855,1.3221,189.08,189.01,0.12549]
[1735235752358,1.3221,189.08,188.99,23.902374]
[1735235756144,1.3221,189.08,189.0,23.776884]
[1735235756346,1.3221,189.08,189.01,0.12549]
[1735235759454,2.6442,189.09,189.02,23.902374]
[1735235761439,3.9663,189.09,189.02,23.902374]
[1735235762552,3.9663,189.09,189.01,23.902374]
[1735235763352,1.3221,189.09,189.01,31.72734672]
[1735235763537,1.3221,189.09,189.03,0.12549]
[1735235763943,1.3221,189.09,189.02,0.12549]
[1735235764150,1.3221,189.09,189.04,23.902374]
[1735235764460,1.3221,189.09,189.06,23.902374]
[1735235765260,2.6434,189.15,189.06,23.902374]
[1735235766273,20.0,189.13,189.06,23.902374]
[1735235766557,1.3219,189.12,189.06,23.902374]
[1735235768858,1.3219,189.12,189.04,6.587]
[1735235768859,1.3219,189.12,189.04,7.38022236]
[1735235769064,1.3219,189.12,189.05,23.902374]
[1735235771260,1.3219,189.12,189.05,0.12549]
[1735235771431,3.9657,189.12,189.04,6.587]
[1735235771631,3.9657,189.12,189.03,1.6064]
[1735235771855,20.0,189.09,189.03,1.6064]
[1735235772957,3.9664,189.08,189.03,1.6064]
[1735235774567,3.9664,189.08,188.92,6.6148]
[1735235774864,23.9664,189.08,188.93,7.82497272]
[1735235775051,20.0,189.06,188.94,23.902374]
[1735235775258,20.0,189.06,188.96,7.95046272]
[1735235775564,1.3224,189.05,188.96,7.95046272]
[1735235775766,21.3224,189.05,188.96,0.12549]
[1735235776368,1.3224,189.05,188.96,0.12549]
[1735235777764,1.3224,189.05,188.98,23.902374]
[1735235778539,20.0,189.04,188.92,6.6148]